Cogmind - Beta 16.1 @@@ ROGUE MODE // 2026.02.02 @ 21:14:10 Player: BlobtheGreat Result: Destroyed by D-53 Grenadier with Mini Grenade Launcher Performance ------------- Evolutions (0) 0 Regions Visited (2) 400 Robots Destroyed (34) 170 Value Destroyed (474) 474 Prototype IDs (3) 60 Alien Tech Used (0) 0 Bonus (0) 0 TOTAL SCORE: 1104 Bonus ------- None Cogmind --------- Core Integrity 0/250 Matter 300/300 Energy 98/100 System Corruption 0% Temperature Cool (0) Movement Core (50) Location -10/Mines Parts ------- > --- POWER (1) -------- (None) > --- PROPULSION (2) --- (None) > --- UTILITY (2) ------ (None) > --- WEAPON (2) ------- (None) > --- INVENTORY (5) ---- Aluminum Leg Seismic Detector Light Assault Rifle Grenade Launcher Grenade Launcher Peak State ------------ > --- POWER ------------ Ion Engine > --- PROPULSION ------- Light Treads Light Treads > --- UTILITY ---------- High-capacity Storage Unit Splice Drone Bay > --- WEAPON ----------- Assault Rifle Light Assault Rifle > --- INVENTORY -------- Light Treads Light Treads Aluminum Leg Aluminum Leg Large Storage Unit Seismic Detector Seismic Detector Light Armor Plating Medium Laser Light Assault Rifle Grenade Launcher Grenade Launcher Hammer Mining Claw Botcube [Rating: 15] Favorites ----------- Power Light Ion Engine Engine Light Ion Engine Propulsion Light Treads Treads Light Treads Utility High-capacity Storage Unit Device Splice Drone Bay Storage High-capacity Storage Unit Protection Light Armor Plating Weapon Light Assault Rifle Ballistic Gun Light Assault Rifle Launcher Grenade Launcher Impact Weapon Hammer Slashing Weapon Mining Claw Build | -11 -10 -10 ------- Run | Yrd Mat Min Slots Evolved . | . . . Power . | . . . Propulsion . | . . . Utility . | . . . Weapon . | . . . Parts Attached 14 | 6 6 2 Power 2 | 1 1 . Engine 2 | 1 1 . Core . | . . . Reactor . | . . . Propulsion 3 | 2 . 1 Treads 3 | 2 . 1 Leg . | . . . Wheel . | . . . Hover . | . . . Flight . | . . . Utility 4 | 1 2 1 Device 1 | . . 1 Storage 2 | 1 1 . Processor . | . . . Hackware . | . . . Protection 1 | . 1 . Artifact . | . . . Weapon 5 | 2 3 . Energy Gun . | . . . Energy Cannon . | . . . Ballistic Gun 2 | 2 . . Ballistic Cannon . | . . . Launcher 1 | . 1 . Special Weapon . | . . . Impact Weapon 1 | . 1 . Slashing Weapon 1 | . 1 . Piercing Weapon . | . . . Special Melee Weapon . | . . . Unidentified Prototypes 1 | . . 1 Parts Lost 6 | . 1 5 Power 1 | . 1 . Propulsion 3 | . . 3 Utility 1 | . . 1 Weapon 1 | . . 1 Highest Loss Streak 5 | . 1 5 To Critical Strikes . | . . . Average Backups 11 | 3 11 13 Power . | . . . Propulsion 2 | 1 2 3 Utility 2 | . 2 3 Weapon 5 | . 5 6 Tool/Special . | . . . Unused Backups 9 | . . 9 Power . | . . . Propulsion 3 | . . 3 Utility 3 | . . 3 Weapon 3 | . . 3 Tool/Special . | . . . Average Slot Usage (%) 99 | . 99 99 Engine 13 | . 13 14 Treads 27 | . 27 28 Storage 16 | . 16 14 Protection 11 | . 10 13 Ballistic Gun 26 | . 26 27 Impact Weapon 1 | . 1 . Peak Build Rating 15 | 7 9 15 Average Rating 8 | 6 8 8 On Entrance 5 | . 7 9 Avg Prop Armor Cover (%) . | . . . Naked Turns . | . . . Heaviest Build 51 | 11 51 51 Greatest Support 40 | 40 40 40 Greatest Overweight (x) 2 | 2 1 2 Average Overweight (x) . | . . 1 Largest Inventory Capacity 20 | 8 20 20 Average Capacity 18 | 7 19 20 Most Carried 15 | 7 15 15 Average Carried 12 | 4 12 14 Final Capacity 20 | 8 20 5 Final Carried 14 | 7 14 5 Class Distribution -------------------- 100% | Mutant Dominant Class ---------------- Mutant | -10/Materials Mutant | -10/Mines Resources | -11 -10 -10 ----------- Run | Yrd Mat Min Matter Collected 702 | 340 281 81 Remotely . | . . . Salvage Created 947 | 264 592 91 Parts 69 | 27 39 3 Haulers Intercepted 2 | . 2 . Recyclers Shooed 2 | . 2 . Parts Field Recycled . | . . . Retrieved Matter . | . . . Parts Self-Destructed . | . . . Prevented . | . . . Parts Restored . | . . . Kills | -11 -10 -10 ------- Run | Yrd Mat Min Combat Hostiles Destroyed 17 | . 15 2 Guns 14 | . 12 2 AOE 3 | . 3 . Classes Destroyed 8 | 3 5 . Worker 2 | 2 . . Builder 2 | . 2 . Tunneler 7 | 7 . . Hauler 2 | . 2 . Recycler 3 | 1 2 . Watcher 1 | . 1 . Swarmer 9 | . 9 . Grunt 8 | . 6 2 Best Kill Streak 6 | 5 6 2 Combat Bots Only 6 | . 6 2 Max Kills in Single Turn 3 | 1 3 1 Gunslinging . | . . . Exploded 2 | . 2 . Melee . | . . . Uniques/NPCs Destroyed . | . . . Combat | -11 -10 -10 -------- Run | Yrd Mat Min Hostile Shots Fired 95 | . 51 44 Missed 21 | . 11 10 Hits 74 | . 40 34 Melee 1 | . . 1 Projectile 73 | . 40 33 AOE 13 | . . 13 Critical Strikes 1 | . 1 . Part Disruptions 1 | . . 1 Damage Taken 1194 | . 378 816 Core 269 | . 60 209 Absorbed by Shields . | . . . Regen/Repaired (Parts) 84 | . 84 . Core Remaining (%) 100 | 100 . . Volleys Fired 80 | 20 47 13 Largest 2 | 2 2 2 Hottest 40 | 40 40 40 Shots Fired 157 | 40 91 26 Gun 154 | 40 88 26 Cannon . | . . . Launcher 3 | . 3 . Special . | . . . Kinetic 154 | 40 88 26 Thermal . | . . . Explosive 3 | . 3 . Electromagnetic . | . . . Robot Hit Streak 20 | 5 12 20 Robot Miss Streak 3 | 2 3 2 Penetration Max . | . . . Secondary Targets 1 | . 1 . Max Gunslinging Chain 1 | . 1 . Shots Hit Robots 101 | 22 61 18 Core Hits 48 | 12 31 5 Critical Kills . | . . . Critical Parts Destroyed . | . . . Critical Strikes . | . . . Melee Attacks 6 | . 6 . Impact 4 | . 4 . Slashing 2 | . 2 . Piercing . | . . . Sneak Attacks 2 | . 2 . Combat Hostiles . | . . . Follow-up Attacks . | . . . Damage Inflicted 1473 | 261 1001 211 Guns 1079 | 261 608 210 Cannons . | . . . Explosions 241 | . 241 . Melee 142 | . 142 . Ramming 11 | . 10 1 Kinetic 1079 | 261 608 210 Thermal . | . . . Explosive 241 | . 241 . Electromagnetic . | . . . Impact 142 | . 142 . Slashing . | . . . Piercing . | . . . Highest Corruption . | . . . Average Corruption . | . . . Corruption Purged . | . . . Corruption Blocked . | . . . Overload Shots . | . . . Overflow Damage 61 | . 61 . Projectiles . | . . . Explosions 9 | . 9 . Melee 52 | . 52 . Knockbacks 2 | . 2 . Impact 2 | . 2 . Kinetic . | . . . Secondary . | . . . Self-Inflicted Damage 21 | . 21 . Shots 1 | . 1 . Rammed 3 | . 2 1 Targets Rammed 4 | . 3 1 Kicked . | . . . Crushed 1 | . 1 . Highest Temperature 37 | . 25 37 Average Temperature 14 | . 9 18 Received Heat Transfer 228 | . 72 156 Siege Activations . | . . . Martial Activations . | . . . Shielding Activations . | . . . Robots Disrupted . | . . . Combat Hostiles . | . . . Robots Corrupted 2 | . 2 . Combat Hostiles . | . . . Parts Fried 4 | . 4 . Impact Corruptions 4 | . 4 . Robots Melted . | . . . Combat Hostiles . | . . . Parts Melted . | . . . Heat Transferred . | . . . Parts Sabotaged . | . . . Parts Stolen . | . . . Parts Stripped . | . . . Power Chain Reactions . | . . . Alert | -11 -10 -10 ------- Run | Yrd Mat Min Maximum Alert Level . | . . . Low Security (%) 100 | 100 100 100 Level 1 . | . . . Level 2 . | . . . Level 3 . | . . . Level 4 . | . . . Level 5 . | . . . High Security . | . . . Max Security . | . . . Peak Influence 175 | 20 175 49 Initial 19 | . . 19 Average 48 | 2 67 6 Influence Increases 647 | 50 547 50 Destroy 0b10 Robot/C 340 | . 300 40 Destroy 0b10 Robot/NC 85 | 50 35 . Destroy Leader 76 | . 66 10 Successful Hack 16 | . 16 . Select Force Hacks 60 | . 60 . Destroy Structure 25 | . 25 . Lose Combat Pursuer 45 | . 45 . Influence Decreases 647 | 50 496 101 Entered New Map 32 | . . 32 Time Decay 605 | 50 486 69 Lost Part 10 | . 10 . Squads Dispatched 4 | . 4 . Investigation 4 | . 4 . Extermination . | . . . Reinforcement . | . . . Assault . | . . . Garrison . | . . . Intercept . | . . . Searches Triggered . | . . . Construction Impeded . | . . . Haulers Reinforced . | . . . Active Scanning Responses . | . . . Cargo Convoy Interrupts . | . . . Stealth | -11 -10 -10 --------- Run | Yrd Mat Min Distress Signals 1 | . 1 . Communications Jammed . | . . . Distress Signals . | . . . Times Spotted 36 | . 21 15 Peak Tracking Total 11 | . 7 11 Tactical Retreats 1 | . 1 . Traps | -11 -10 -10 ------- Run | Yrd Mat Min Traps Triggered 1 | . 1 . Indirectly . | . . . Trap Hack Attempts . | . . . Triggered . | . . . Disarmed . | . . . Reprogrammed . | . . . Reused . | . . . Traps Extracted . | . . . Installed . | . . . Triggered . | . . . Machines | -11 -10 -10 ---------- Run | Yrd Mat Min Machines Disabled . | . . . Max in Single Turn . | . . . Machines Repaired . | . . . Machines Dismantled . | . . . Machines Sabotaged . | . . . Overloaded Fab Kills . | . . . Hacking | -11 -10 -10 --------- Run | Yrd Mat Min Machines Accessed 11 | . 10 1 Terminals 7 | . 7 . Fabricators . | . . . Repair Stations 1 | . 1 . Recycling Units 2 | . 2 . Scanalyzers . | . . . Garrison Access . | . . . Total Hacks 24 | . 23 1 Successful 17 | . 16 1 Failed 6 | . 6 . Catastrophic . | . . . Database Lockouts 1 | . 1 . Manual 15 | . 15 . Terminals 18 | . 18 . Fabricators . | . . . Repair Stations 3 | . 3 . Recycling Units 2 | . 2 . Scanalyzers . | . . . Garrison Access . | . . . Terminal Hacks 6 | . 5 1 Robot Analysis 1 | . 1 . Prototype ID Bank 1 | . 1 . Open Door 1 | . . 1 Hauler Manifests 1 | . 1 . Zone Layout 2 | . 2 . Fabricator Hacks . | . . . Repair Station Hacks 2 | . 2 . Scan Component 1 | . 1 . Repair 1 | . 1 . Recycling Unit Hacks . | . . . Scanalyzer . | . . . Garrison Access Hacks . | . . . Unauthorized Hacks 9 | . 9 . Terminals 7 | . 7 . Botnet 2 | . 2 . Skim 5 | . 5 . Fabricators . | . . . Repair Stations . | . . . Recycling Units 2 | . 2 . Tunnel 2 | . 2 . Scanalyzers . | . . . Garrison Access . | . . . Data Cores Recovered . | . . . Used . | . . . Hacking Detections 5 | . 5 . Full Trace Events . | . . . Feedback Events . | . . . Feedback Blocked . | . . . Robot Schematics Acquired . | . . . Robots Built . | . . . Authchips . | . . . Time . | . . . Total Robot Build Rating . | . . . Part Schematics Acquired . | . . . Parts Built . | . . . Authchips . | . . . Time . | . . . Total Part Build Rating . | . . . Part Studies Acquired . | . . . Parts Repaired 1 | . 1 . Time 26 | . 26 . Parts Recycled . | . . . Recycled Matter . | . . . Retrieved Matter . | . . . Retrieved Components . | . . . Parts Scanalyzed . | . . . Part Schematics Acquired . | . . . Parts Damaged . | . . . Bothacking | -11 -10 -10 ------------ Run | Yrd Mat Min Used RIF Installer . | . . . Robots Hacked . | . . . Non-combat . | . . . Combat . | . . . Robot Hacks Applied . | . . . Relay Couplers Released . | . . . Fabnet Peak Effective % . | . . . Robots Rewired . | . . . Allies Hacked . | . . . Hacks Repelled . | . . . Allies | -11 -10 -10 -------- Run | Yrd Mat Min Total Allies . | . . . Largest Group . | . . . Highest-Rated Group . | . . . Highest-Rated Ally . | . . . Total Orders . | . . . Ally Attacks . | . . . Total Damage . | . . . Kills . | . . . Allies Corrupted . | . . . Allies Melted . | . . . Intel | -11 -10 -10 ------- Run | Yrd Mat Min Active Infowar (turns) . | . . . Robot Analysis Total 1 | . 1 . Derelict Logs Recovered 1 | . . 1 Drone Launches . | . . . Drone Recoveries . | . . . Exploration | -11 -10 -10 ------------- Run | Yrd Mat Min Turns Passed 2738 | 240 1897 601 Spaces Moved 1018 | 108 677 233 Core 6 | 4 . 2 Treads 1012 | 104 677 231 Legs . | . . . Wheels . | . . . Hover . | . . . Flight . | . . . Fastest Speed 50 | 50 160 50 Average Speed 227 | 157 235 239 Slowest Speed 320 | 160 240 320 Overloaded Moves . | . . . Propulsion Burnouts . | . . . Robots Hopped . | . . . Potential Cave-ins . | . . . Cave-ins Triggered . | . . . Exploration Rate (%) 48 | 4 94 47 Regions Visited 2 Branch Regions 1 Pre-discovered Areas 7 | . 6 1 Known Exits Taken 1 | . 1 . Unknown Exits Taken 1 | 1 . . Scrap Searched . | . . . Spaces Dug 11 | . 11 . Terrain Destroyed 25 | . 25 . Melee 2 | . 2 . Projectile . | . . . AOE 23 | . 23 . Terrain Rammed . | . . . Walls Destroyed . | . . . Machines Disabled . | . . . Actions | -11 -10 -10 --------- Run | Yrd Mat Min Total 1273 | 139 883 251 Wait 128 | . 128 . Move 1016 | 107 676 233 Hop . | . . . Pick Up 15 | 6 9 . Fast Attach 9 | 6 2 1 Attach 4 | . 3 1 Detach 3 | . 2 1 Swap 7 | . 6 1 Drop 1 | . 1 . Fire 80 | 20 47 13 Melee 6 | . 6 . Ram . | . . . Kick . | . . . Crush 4 | . 3 1 Escape Stasis . | . . . Rewire . | . . . Trap . | . . . Miscellaneous . | . . . Route ------- -11/Scrapyard -10/Materials (discovered 5 exits: *Mat x3 / *Min x2) -10/Mines (discovered 2 exits: *Mat / *Sub) History --------- Turn | Location | Event 6 | -11/Scrapyard | Discovered new exit (range 16) 241 | -11/Scrapyard | Entered Materials 329 | -10/Materials | Build established: Mutant 375 | -10/Materials | Central database locked down 846 | -10/Materials | Discovered new exit (range 5) 1260 | -10/Materials | Identified exit to Materials 1295 | -10/Materials | Learned location of Mines (-8) 1336 | -10/Materials | Learned location of Mines (-10) 1341 | -10/Materials | Learned location of 1 exit from Recycling 1342 | -10/Materials | Learned location of 2 exits from Subcaves 1351 | -10/Materials | Identified exit to Mines 1366 | -10/Materials | Learned location of Subcaves (-10) 1381 | -10/Materials | Discovered exit to Mines (range 16) 1766 | -10/Materials | Repaired Lgt. Treads 2138 | -10/Materials | Entered Mines 2139 | -10/Mines | Identified exit to Subcaves 2154 | -10/Mines | Met a Derelict bent on vengeance 2189 | -10/Mines | Discovered exit to Materials (range 6) 2334 | -10/Mines | Found the Drone Emporium 2340 | -10/Mines | Learned 2 Materials zone layouts 2346 | -10/Mines | Found Prototype Device 2346 | -10/Mines | Identified Splice Drone Bay 2427 | -10/Mines | Learned location of Storage (-9) 2693 | -10/Mines | Assembled infested the area 2733 | -10/Mines | Core integrity fell below 50% 2739 | -10/Mines | Core integrity fell below 20% 2739 | -10/Mines | Released all parts (3) 2739 | -10/Mines | Destroyed by D-53 Grenadier with Mini Grenade Launcher Last Messages --------------- 02727_ U-05 Engineer lays Concrete. 02728_ The unstable cave ceiling collapses. 02728_ Lgt. Treads destroyed. 02728_ as-66986 destroyed. 02729_ Acquired 5 matter. 02729_ U-05 Engineer lays Concrete. 02730_ as-30284 destroyed. 02730_ U-05 Engineer lays Concrete. 02731_ U-05 Engineer builds a Wall. 02733_ U-05 Engineer lays Concrete. 02733_ Lgt. Treads destroyed. 02734_ as-24348 destroyed. 02734_ U-05 Engineer lays Concrete. 02738_ The unstable cave ceiling collapses. 02738_ U-05 Engineer lays Concrete. 02738_ Lgt. Treads destroyed. 02738_ U-05 Engineer lays Concrete. 02739_ Released Lgt. Assault Rifle. 02739_ Released Hcp. Storage Unit. 02739_ Released Ion Engine. Map ----- +----------------------------------------------------+ | #????????????????????????????????????????????????? | | #????????????????????????????????????????????????? | | #????????????????????????????????????????????????? | | ###????###???????????????????????????????????????? | | #??## ##??????????????????????????????????????? | | # #?## ###????????????????????????????????????? | | #%### #????????????????????????????????????? | | # #????????????????????????????????????? | | ##### #????????????????????????????????????? | | ????# ???????????????????????????????? | | ????# ########??????????????????????????????? | | ????## ###?????????????????????????????????????? | | ?????#####???????????????????????????????????????? | | ?###????????????????####?????????????????????????? | | # ##??????????????## ##????????????????????????? | | #?????????????## #????????????????????????? | | #??????????????# #????????????????????????? | | #?????????####### ##???????????????????????? | | #?????????## ###?????????????????????? | | #?????????## ####### ???????????? | | #????????## a ????????????? | | ?????????# uu * %* #????????????????? | | #????????# d [!/ ##???????????????????? | | ##???????# d =![!& ##???????????????????? | | ##??????# # /!= #???????????????????? | | ####???# # %@ #???????????????????? | | ##??## ## *** #???????????????????? | | ##?## ### r ##???????????????????? | | """ ### ## ##????????????????????? | | """ "%" ##?????????????????????? | | """ " ##??????????????????????? | | ####???????????????????????? | | ## ########??????????????????????????? | | # ##########?????????????????????????????????? | | ## #??????????????????????????????????????????? | | ?## ##??????????????????????????????????????????? | | ??####???????????????????????????????????????????? | | ###??????????????????????????????????????????????? | | ##?????????????????????????????????????????????? | | #???######????????????????????????????????????? | | #??##""""####?????????????????????????????????? | | ##??#" "# ##????????????????????????????????? | | ###???#" "# #????????????????????????????????? | | ??????## ## #????????????????????????????????? | | ??????### ## #????????????????????????????????? | | ??????# X #????????????????????????????????? | | ??????# ##????????????????????????????????? | | ?????## ##?????????????????????????????????? | | #????# ##??????????????????????????????????? | | ###### ###???????????????????????????????????? | +----------------------------------------------------+ Best States ------------- Heat Dissipation 25 Energy Generation 10 Energy Capacity 250 Matter Stores 300 Matter Capacity 300 Sight Range 16 Terrain Scan Density 10 Armor Coverage 150 Evasion (%) 40 Recoil Reduction 2 Item Schematics ----------------- None Robot Schematics ------------------ None Fabricated ------------ Nothing Repaired ---------- Lgt. Treads | 40% | -10/Materials Studied --------- None Alien Tech Used ----------------- None Achievements -------------- None Challenges ------------ None Game ------ Seed ArmorMachineCompressor Manual? 0 Play Time 00:10:04 Cumulative 263.7 hours Start 2026.02.02 @ 21:05:23 End 2026.02.02 @ 21:14:10 Sessions 1 Manual Loads 0 Difficulty Rogue Special Mode None Game No. 261 Rogue 261 Adventurer 0 Explorer 0 Win Type - Total 13 Types 9/1/2/0/0/0/0/0/0/1 Lore% 88 Gallery% 80 Achievement% 63 Wizard Run 0 Options --------- Layout 1 ASCII 0 Keyboard 1 Movement Arrows Keybinds 0 Fullscreen 1 Font 24/Smallcaps Map View 50x40 Zoom Use 0% Tactical HUD 1 Map Filters NONE Filters NONE Steam 1 RUN: 56afef63-1d26-42f2-b6e0-980b543d2d63